fUST/lending_fUST_20250617
["ID","MTS","AMOUNT","RATE_DAILY","PERIOD"]
[366268287,1750169441346,-460.0,0.00024109,6]
[366268289,1750169441356,-460.0,0.00024109,6]
[366268291,1750169441365,-460.0,0.00024109,6]
[366268293,1750169441375,-460.0,0.00024109,6]
[366268295,1750169441385,-460.0,0.00024109,6]
[366268297,1750169441396,-460.0,0.00024109,6]
[366268299,1750169441406,-470.0,0.00024109,6]
[366268301,1750169441416,-460.0,0.00024109,6]
[366268302,1750169441426,-460.0,0.00024109,6]
[366268304,1750169441436,-460.0,0.00024109,6]
[366268306,1750169441445,-346.62038587,0.00024109,6]
[366268308,1750169441455,-460.0,0.00024109,6]
[366268310,1750169441465,-330.77784245,0.00024109,6]
[366268312,1750169441475,-440.0,0.00024109,6]
[366268313,1750169441485,-315.55178573,0.00024109,6]
[366268315,1750169441499,-500.0,0.00024109,6]
[366268317,1750169441509,-460.0,0.00024109,6]
[366268319,1750169441518,-1536.14,0.00024109,6]
[366268321,1750169441528,-460.0,0.00024109,6]
[366268322,1750169441537,-460.0,0.00024109,6]
[366268324,1750169441546,-460.0,0.00024109,6]
[366268326,1750169441556,-460.0,0.00024109,6]
[366268328,1750169441565,-460.0,0.00024109,6]
[366268330,1750169441575,-460.0,0.00024109,6]
[366268332,1750169441585,-638.49,0.00024109,6]
[366268334,1750169441595,-460.0,0.00024109,6]
[366268335,1750169441604,-460.0,0.00024109,6]
[366268337,1750169441614,-460.0,0.00024109,6]
[366268339,1750169441624,-460.0,0.00024109,6]
[366268341,1750169441634,-498.95,0.00024109,6]
[366268343,1750169441645,-460.0,0.00024109,6]
[366268345,1750169441654,-500.5,0.00024109,6]
[366268347,1750169441664,-460.0,0.00024109,6]
[366268349,1750169441675,-440.0,0.00024109,6]
[366268351,1750169441684,-428.51128961,0.00024109,6]
[366268352,1750169441694,-460.0,0.00024109,6]
[366268354,1750169441705,-460.0,0.00024109,6]
[366268356,1750169441715,-460.0,0.00024109,6]
[366268358,1750169441726,-460.0,0.00024109,6]
[366268360,1750169441736,-426.50818893,0.00024109,6]
[366268362,1750169441752,-228.03758262,0.00024109,6]
[366268364,1750169441762,-565.11,0.00024109,6]
[366268366,1750169441772,-298.79108871,0.00024109,6]
[366268367,1750169441782,-500.0,0.00024109,6]
[366268369,1750169441792,-460.0,0.00024109,6]
[366268371,1750169441801,-460.0,0.00024109,6]
[366268373,1750169441811,-460.0,0.00024109,6]
[366268375,1750169441821,-460.0,0.00024109,6]
[366268377,1750169441831,-460.0,0.00024109,6]
[366268379,1750169441841,-460.0,0.00024109,6]
[366268380,1750169441850,-460.0,0.00024109,6]
[366268382,1750169441859,-460.0,0.00024109,6]
[366268384,1750169441869,-460.0,0.00024109,6]
[366268386,1750169441879,-460.0,0.00024109,6]
[366268388,1750169441889,-460.0,0.00024109,6]
[366268390,1750169441899,-435.86755996,0.00024109,6]
[366268392,1750169441909,-460.0,0.00024109,6]
[366268394,1750169441919,-460.0,0.00024109,6]
[366268396,1750169441929,-250.0,0.00024109,6]
[366268397,1750169441938,-460.58583264,0.00024109,6]
[366268399,1750169441948,-460.0,0.00024109,6]
[366268401,1750169441958,-460.0,0.00024109,6]
[366268403,1750169441968,-400.10242595,0.00024109,6]
[366268405,1750169441979,-460.0,0.00024109,6]
[366268407,1750169441989,-460.0,0.00024109,6]
[366268409,1750169442003,-460.0,0.00024109,6]
[366268411,1750169442013,-440.0,0.00024109,6]
[366268413,1750169442023,-302.3695488,0.00024109,6]
[366268414,1750169442032,-369.68180565,0.00024109,6]
[366268416,1750169442043,-437.80626799,0.00024109,6]
[366268418,1750169442052,-460.0,0.00024109,6]
[366268420,1750169442062,-460.0,0.00024109,6]
[366268422,1750169442072,-1399.5,0.00024109,6]
[366268424,1750169442082,-460.0,0.00024109,6]
[366268426,1750169442092,-460.0,0.00024109,6]
[366268428,1750169442102,-460.0,0.00024109,6]
[366268429,1750169442112,-430.0,0.00024109,6]
[366268431,1750169442122,-430.58295268,0.00024109,6]
[366268433,1750169442132,-460.0,0.00024109,6]
[366268434,1750169442142,-460.0,0.00024109,6]
[366268435,1750169442153,-500.0,0.00024109,6]
[366268436,1750169442163,-500.0,0.00024109,6]
[366268437,1750169442173,-500.0,0.00024109,6]
[366268438,1750169442183,-250.53418366,0.00024109,6]
[366268439,1750169442193,-460.0,0.00024109,6]
[366268440,1750169442206,-474.25946135,0.00024109,6]
[366268441,1750169442216,-460.0,0.00024109,6]
[366268442,1750169442225,-460.0,0.00024109,6]
[366268443,1750169442235,-460.0,0.00024109,6]
[366268444,1750169442249,-440.0,0.00024109,6]
[366268445,1750169442258,-440.0,0.00024109,6]
[366268446,1750169442268,-460.0,0.00024109,6]
[366268447,1750169442278,-460.0,0.00024109,6]
[366268448,1750169442288,-460.0,0.00024109,6]
[366268449,1750169442299,-460.0,0.00024109,6]
[366268450,1750169442308,-7164.63,0.00024109,6]
[366268451,1750169442318,-460.0,0.00024109,6]
[366268452,1750169442329,-460.0,0.00024109,6]
[366268453,1750169442339,-460.0,0.00024109,6]
[366268454,1750169442349,-460.0,0.00024109,6]
[366268455,1750169442359,-460.0,0.00024109,6]
[366268456,1750169442369,-460.0,0.00024109,6]
[366268457,1750169442379,-460.0,0.00024109,6]
[366268458,1750169442388,-460.0,0.00024109,6]
[366268459,1750169442398,-460.0,0.00024109,6]
[366268460,1750169442408,-460.0,0.00024109,6]
[366268461,1750169442418,-460.0,0.00024109,6]
[366268462,1750169442428,-5709.99,0.00024109,6]
[366268463,1750169442439,-655.93,0.00024109,6]
[366268464,1750169442450,-273.49843455,0.00024109,6]
[366268465,1750169442460,-460.0,0.00024109,6]
[366268466,1750169442470,-478.77,0.00024109,6]
[366268467,1750169442485,-956.69,0.00024109,6]
[366268473,1750169442618,-460.0,0.00024109,6]
[366268475,1750169442635,-3674.88,0.00024109,6]
[366268477,1750169442649,-460.0,0.00024109,6]
[366268479,1750169442668,-389.37986994,0.00024109,6]
[366268482,1750169442682,-460.0,0.00024109,6]
[366268483,1750169442692,-460.0,0.00024109,6]
[366268485,1750169442702,-460.0,0.00024109,6]
[366268487,1750169442712,-307.98287863,0.00024109,6]
[366268489,1750169442722,-460.0,0.00024109,6]
[366268491,1750169442733,-1420.2,0.00024109,6]
[366268493,1750169442744,-460.0,0.00024109,6]
[366268495,1750169442754,-460.0,0.00024109,6]
[366268497,1750169442764,-460.0,0.00024109,6]
[366268499,1750169442774,-460.0,0.00024109,6]
[366268501,1750169442784,-460.0,0.00024109,6]
[366268503,1750169442794,-2016.1,0.00024109,2]
[366268505,1750169442803,-460.0,0.00024109,6]
[366268507,1750169442813,-791.81,0.00024109,6]
[366268509,1750169442823,-460.0,0.00024109,6]
[366268511,1750169442833,-237.55222512,0.00024109,6]
[366268513,1750169442844,-297.29018269,0.00024109,6]
[366268515,1750169442853,-460.0,0.00024109,6]
[366268517,1750169442863,-460.0,0.00024109,6]
[366268519,1750169442873,-1220.55,0.00024109,6]
[366268521,1750169442882,-460.0,0.00024109,6]
[366268523,1750169442892,-1098.59,0.00024109,6]
[366268524,1750169442902,-267.36492451,0.00024109,6]
[366268526,1750169442911,-460.0,0.00024109,6]
[366268528,1750169442921,-636.28,0.00024109,6]
[366268530,1750169442931,-1596.24,0.00024109,6]
[366268532,1750169442941,-516.8091273,0.00024109,6]
[366268534,1750169442951,-460.0,0.00024109,6]
[366268536,1750169442960,-460.0,0.00024109,6]
[366268538,1750169442970,-460.0,0.00024109,6]
[366268540,1750169442980,-460.0,0.00024109,6]
[366268542,1750169442989,-1045.45,0.00024109,6]
[366268544,1750169443001,-460.0,0.00024109,6]
[366268546,1750169443010,-460.0,0.00024109,6]
[366268548,1750169443020,-874.47,0.00024109,6]
[366268550,1750169443030,-460.0,0.00024109,6]
[366268552,1750169443039,-460.0,0.00024109,6]
[366268554,1750169443049,-460.0,0.00024109,6]
[366268556,1750169443059,-460.0,0.00024109,6]
[366268558,1750169443069,-460.0,0.00024109,6]
[366268560,1750169443079,-460.0,0.00024109,6]
[366268562,1750169443088,-2259.26,0.00024109,6]
[366268564,1750169443098,-460.0,0.00024109,6]
[366268566,1750169443108,-460.0,0.00024109,6]
[366268568,1750169443118,-460.0,0.00024109,6]
[366268570,1750169443128,-460.0,0.00024109,6]
[366268572,1750169443137,-468.81,0.00024109,6]
[366268574,1750169443148,-460.0,0.00024109,6]
[366268576,1750169443157,-474.83,0.00024109,6]
[366268578,1750169443167,-974.49,0.00024109,6]
[366268580,1750169443177,-460.0,0.00024109,6]
[366268582,1750169443186,-1341.92,0.00024109,6]
[366268584,1750169443197,-460.0,0.00024109,6]
[366268585,1750169443210,-4084.92,0.00024109,6]
[366268587,1750169443221,-841.53,0.00024109,6]
[366268589,1750169443231,-460.0,0.00024109,6]
[366268591,1750169443242,-460.0,0.00024109,6]
[366268594,1750169443252,-460.0,0.00024109,6]
[366268597,1750169443262,-1619.79,0.00024109,6]
[366268599,1750169443271,-460.0,0.00024109,6]
[366268601,1750169443281,-2543.08,0.00024109,6]
[366268603,1750169443292,-500.0,0.00024109,6]
[366268605,1750169443302,-500.0,0.00024109,6]
[366268607,1750169443312,-460.0,0.00024109,6]
[366268609,1750169443321,-500.0,0.00024109,6]
[366268611,1750169443331,-500.0,0.00024109,6]
[366268613,1750169443341,-500.0,0.00024109,6]
[366268616,1750169443351,-500.0,0.00024109,6]
[366268618,1750169443360,-463.13740274,0.00024109,6]
[366268620,1750169443370,-500.0,0.00024109,6]
[366268622,1750169443379,-460.0,0.00024109,6]
[366268624,1750169443389,-5432.17,0.00024109,6]
[366268626,1750169443399,-500.0,0.00024109,6]
[366268628,1750169443409,-500.0,0.00024109,6]
[366268630,1750169443418,-500.0,0.00024109,6]
[366268631,1750169443428,-500.0,0.00024109,6]
[366268633,1750169443437,-500.0,0.00024109,6]
[366268635,1750169443447,-500.0,0.00024109,6]
[366268637,1750169443456,-500.0,0.00024109,6]
[366268639,1750169443466,-460.0,0.00024109,6]
[366268641,1750169443475,-500.0,0.00024109,6]
[366268643,1750169443484,-500.0,0.00024109,6]
[366268645,1750169443495,-500.0,0.00024109,6]
[366268647,1750169443506,-460.0,0.00024109,6]
[366268649,1750169443516,-460.0,0.00024109,6]
[366268651,1750169443526,-460.0,0.00024109,6]
[366268653,1750169443536,-434.26134436,0.00024109,5]
[366268655,1750169443547,-460.0,0.00024109,6]
[366268657,1750169443556,-943.63,0.00024109,6]
[366268659,1750169443566,-440.0,0.00024109,6]
[366268661,1750169443576,-460.0,0.00024109,6]
[366268663,1750169443586,-460.0,0.00024109,6]
[366268665,1750169443597,-384.35353115,0.00024109,6]
[366268667,1750169443607,-460.0,0.00024109,6]
[366268669,1750169443617,-307.59838783,0.00024109,6]
[366268671,1750169443627,-178.58655484,0.00024109,6]
[366268673,1750169443637,-451.56501667,0.00024109,6]
[366268675,1750169443646,-460.0,0.00024109,6]
[366268677,1750169443657,-6773.17,0.00024109,6]
[366268679,1750169443667,-2218.05,0.00024109,6]
[366268681,1750169443677,-460.0,0.00024109,6]
[366268683,1750169443687,-460.0,0.00024109,6]
[366268685,1750169443696,-1352.3,0.00024109,6]
[366268695,1750169443792,-460.0,0.00024109,6]
[366268698,1750169443803,-460.0,0.00024109,6]
[366268699,1750169443814,-1254.61,0.00024109,6]
[366268701,1750169443823,-604.96,0.00024109,6]
[366268703,1750169443833,-460.0,0.00024109,6]
[366268705,1750169443843,-436.54330812,0.00024109,6]
[366268708,1750169443853,-460.0,0.00024109,6]
[366268710,1750169443863,-460.0,0.00024109,6]
[366268712,1750169443873,-1208.43,0.00024109,6]
[366268714,1750169443883,-7855.89,0.00024109,6]
[366268716,1750169443892,-623.11181275,0.00024109,6]
[366268718,1750169443902,-460.0,0.00024109,6]
[366268720,1750169443912,-8639.97,0.00024109,6]
[366268722,1750169443921,-460.0,0.00024109,6]
[366268724,1750169443931,-460.0,0.00024109,6]
[366268726,1750169443941,-460.0,0.00024109,6]
[366268728,1750169443950,-460.0,0.00024109,6]
[366268730,1750169443961,-460.0,0.00024109,6]
[366268732,1750169443970,-484.15,0.00024109,6]
[366268734,1750169443980,-460.0,0.00024109,6]
[366268736,1750169443990,-460.0,0.00024109,6]
[366268738,1750169444001,-460.0,0.00024109,6]
[366268740,1750169444011,-441.31271171,0.00024109,6]
[366268742,1750169444021,-460.0,0.00024109,6]
[366268744,1750169444031,-460.0,0.00024109,6]
[366268746,1750169444040,-564.72,0.00024109,6]
[366268748,1750169444050,-460.0,0.00024109,6]
[366268750,1750169444060,-1725.23,0.00024109,6]
[366268752,1750169444069,-460.0,0.00024109,6]
[366268754,1750169444079,-460.0,0.00024109,6]
[366268756,1750169444088,-440.0,0.00024109,6]
[366268758,1750169444098,-460.0,0.00024109,6]
[366268760,1750169444107,-689.18,0.00024109,6]
[366268762,1750169444118,-460.0,0.00024109,6]
[366268764,1750169444127,-2640.18,0.00024109,6]
[366268766,1750169444137,-460.0,0.00024109,6]
[366268768,1750169444146,-460.0,0.00024109,6]
[366268770,1750169444156,-723.32,0.00024109,6]
[366268772,1750169444166,-2045.47,0.00024109,6]
[366268774,1750169444176,-460.0,0.00024109,6]
[366268776,1750169444185,-460.0,0.00024109,6]
[366268778,1750169444195,-500.0,0.00024109,6]
[366268780,1750169444205,-404.32079073,0.00024109,6]
[366268782,1750169444217,-460.0,0.00024109,6]
[366268784,1750169444227,-220.0,0.00024109,6]
[366268786,1750169444237,-460.0,0.00024109,6]
[366268788,1750169444249,-281.84637289,0.00024109,6]
[366268790,1750169444260,-516.819755,0.00024109,6]
[366268792,1750169444270,-1685.22,0.00024109,6]
[366268794,1750169444280,-857.37,0.00024109,6]
[366268798,1750169444308,-362.02250061,0.00024109,6]
[366268801,1750169444328,-460.0,0.00024109,6]
[366268804,1750169444351,-460.0,0.00024109,6]
[366268808,1750169444377,-460.0,0.00024109,6]
[366268811,1750169444400,-1668.07,0.00024109,6]
[366268814,1750169444418,-3319.29,0.00024109,6]
[366268817,1750169444440,-460.0,0.00024109,6]
[366268820,1750169444457,-477.35997688,0.00024109,6]
[366268823,1750169444476,-2273.07,0.00024109,6]
[366268826,1750169444498,-460.0,0.00024109,6]
[366268829,1750169444523,-1100.15,0.00024109,6]
[366268832,1750169444538,-432.17067932,0.00024109,6]
[366268835,1750169444558,-460.0,0.00024109,6]
[366268837,1750169444576,-460.0,0.00024109,6]
[366268840,1750169444594,-432.28156503,0.00024109,6]
[366268843,1750169444609,-460.0,0.00024109,6]
[366268845,1750169444625,-460.0,0.00024109,6]
[366268848,1750169444641,-460.0,0.00024109,6]
[366268851,1750169444657,-1285.95,0.00024109,6]
[366268853,1750169444674,-460.0,0.00024109,6]
[366268856,1750169444690,-460.0,0.00024109,6]
[366268859,1750169444707,-6491.67,0.00024109,6]
[366268862,1750169444724,-978.4,0.00024109,6]
[366268864,1750169444741,-627.8,0.00024109,6]
[366268867,1750169444759,-460.0,0.00024109,6]
[366268870,1750169444777,-267.44472567,0.00024109,6]
[366268873,1750169444793,-1439.13,0.00024109,6]
[366268875,1750169444811,-460.0,0.00024109,6]
[366268878,1750169444828,-658.34,0.00024109,6]
[366268881,1750169444847,-460.0,0.00024109,6]
[366268884,1750169444864,-460.0,0.00024109,6]
[366268886,1750169444882,-460.0,0.00024109,6]
[366268889,1750169444898,-2616.54,0.00024109,6]
[366268892,1750169444915,-408.16965099,0.00024109,6]
[366268895,1750169444934,-510.47,0.00024109,6]
[366268898,1750169444950,-460.0,0.00024109,6]
[366268900,1750169444967,-460.0,0.00024109,6]
[366268903,1750169444985,-460.0,0.00024109,6]
[366268906,1750169445003,-460.0,0.00024109,6]
[366268908,1750169445022,-451.79206832,0.00024109,6]
[366268911,1750169445040,-460.0,0.00024109,6]
[366268914,1750169445057,-551.34,0.00024109,6]
[366268917,1750169445074,-2158.43,0.00024109,6]
[366268919,1750169445091,-1169.2,0.00024109,6]
[366268922,1750169445107,-460.0,0.00024109,6]
[366268925,1750169445124,-460.0,0.00024109,6]
[366268927,1750169445137,-2802.09,0.00024109,6]
[366268929,1750169445148,-1936.0,0.00024109,6]
[366268931,1750169445158,-199.56816334,0.00024109,6]
[366268949,1750169445320,-460.0,0.00024109,6]
[366268952,1750169445341,-460.0,0.00024109,6]
[366268954,1750169445351,-465.19838748,0.00024109,6]
[366268956,1750169445362,-460.0,0.00024109,6]
[366268958,1750169445371,-460.0,0.00024109,6]
[366268960,1750169445381,-460.0,0.00024109,6]
[366268962,1750169445391,-500.0,0.00024109,2]
[366268963,1750169445400,-1800.86,0.00024109,6]
[366268965,1750169445410,-460.0,0.00024109,6]
[366268967,1750169445420,-460.0,0.00024109,6]
[366268969,1750169445430,-5628.82,0.00024109,6]
[366268972,1750169445440,-460.0,0.00024109,6]
[366268973,1750169445449,-460.0,0.00024109,6]
[366268975,1750169445459,-460.0,0.00024109,6]
[366268977,1750169445469,-334.96244374,0.00024109,6]
[366268979,1750169445479,-460.0,0.00024109,6]
[366268981,1750169445489,-460.0,0.00024109,6]
[366268983,1750169445503,-460.0,0.00024109,6]
[366268985,1750169445513,-460.0,0.00024109,6]
[366268987,1750169445524,-460.0,0.00024109,6]
[366268990,1750169445534,-636.22,0.00024109,6]
[366268991,1750169445543,-511.04995103,0.00024109,6]
[366268993,1750169445553,-460.0,0.00024109,6]
[366268995,1750169445563,-460.0,0.00024109,6]
[366268997,1750169445572,-460.0,0.00024109,6]
[366268999,1750169445582,-460.0,0.00024109,6]
[366269001,1750169445591,-460.0,0.00024109,6]
[366269003,1750169445601,-460.0,0.00024109,6]
[366269005,1750169445611,-460.0,0.00024109,6]
[366269007,1750169445620,-460.0,0.00024109,6]
[366269009,1750169445630,-1118.45,0.00024109,6]
[366269011,1750169445639,-460.0,0.00024109,6]
[366269013,1750169445648,-460.0,0.00024109,6]
[366269015,1750169445657,-158.21288016,0.00024109,6]
[366269017,1750169445667,-224.82145463,0.00024109,6]
[366269019,1750169445676,-440.0,0.00024109,6]
[366269021,1750169445686,-460.0,0.00024109,6]
[366269023,1750169445696,-1122.8,0.00024109,6]
[366269025,1750169445706,-460.0,0.00024109,6]
[366269027,1750169445715,-460.0,0.00024109,6]
[366269029,1750169445725,-460.0,0.00024109,6]
[366269031,1750169445734,-460.0,0.00024109,6]
[366269033,1750169445743,-573.87,0.00024109,6]
[366269035,1750169445754,-460.0,0.00024109,6]
[366269037,1750169445764,-460.0,0.00024109,6]
[366269039,1750169445773,-872.02,0.00024109,6]
[366269041,1750169445784,-460.0,0.00024109,6]
[366269043,1750169445794,-210.83379737,0.00024109,6]
[366269045,1750169445804,-460.0,0.00024109,6]
[366269047,1750169445813,-460.0,0.00024109,6]
[366269049,1750169445822,-440.0,0.00024109,6]
[366269051,1750169445832,-3000.0,0.0002411,2]
[366269053,1750169445841,-500.0,0.0002411,2]
[366269055,1750169445851,-3000.0,0.0002412,2]
[366269057,1750169445860,-3000.0,0.0002413,2]
[366269059,1750169445869,-500.0,0.00024135,6]
[366269061,1750169445878,-500.0,0.00024135,6]
[366269063,1750169445888,-500.0,0.00024135,6]
[366269065,1750169445897,-500.0,0.00024135,6]
[366269067,1750169445907,-500.0,0.00024135,6]
[366269068,1750169445916,-559.06,0.00024135,6]
[366269070,1750169445926,-154.827955,0.00024136,7]
[366269072,1750169445936,-151.0,0.00024136,7]
[366269073,1750169445945,-151.0,0.00024136,7]
[366269075,1750169445955,-151.0,0.00024136,7]
[366269077,1750169445964,-151.0,0.00024136,7]
[366269078,1750169445974,-152.685085,0.00024136,7]
[366269080,1750169445984,-151.0,0.00024136,7]
[366269082,1750169445993,-151.0,0.00024136,7]
[366269083,1750169446005,-151.66546,0.00024136,7]
[366269085,1750169446014,-151.684097,0.00024136,7]
[366269087,1750169446024,-151.0,0.00024136,7]
[366269088,1750169446034,-151.0,0.00024136,7]
[366269090,1750169446043,-151.0,0.00024136,7]
[366269093,1750169446053,-151.0,0.00024136,7]
[366269095,1750169446062,-151.0,0.00024136,7]
[366269097,1750169446072,-430.80264988,0.00024136,6]
[366269099,1750169446081,-572.45655225,0.00024136,6]
[366269101,1750169446091,-400.0,0.00024136,6]
[366269102,1750169446102,-460.0,0.00024136,6]
[366269104,1750169446111,-460.0,0.00024136,6]
[366269106,1750169446121,-390.0,0.00024136,6]
[366269107,1750169446130,-460.0,0.00024136,6]
[366269109,1750169446140,-460.0,0.00024136,6]
[366269111,1750169446149,-562.29086004,0.00024136,6]
[366269112,1750169446159,-460.0,0.00024136,6]
[366269114,1750169446168,-329.95827375,0.00024136,6]
[366269116,1750169446178,-460.0,0.00024136,6]
[366269117,1750169446187,-460.0,0.00024136,6]
[366269119,1750169446197,-460.0,0.00024136,6]
[366269122,1750169446210,-460.0,0.00024136,6]
[366269123,1750169446219,-460.0,0.00024136,6]
[366269125,1750169446229,-460.0,0.00024136,6]
[366269127,1750169446238,-289.95760688,0.00024136,6]
[366269130,1750169446249,-460.0,0.00024136,6]
[366269131,1750169446259,-460.0,0.00024136,6]
[366269134,1750169446269,-460.0,0.00024136,6]
[366269136,1750169446279,-460.0,0.00024136,6]
[366269137,1750169446290,-460.0,0.00024136,6]
[366269139,1750169446300,-460.0,0.00024136,6]
[366269141,1750169446311,-460.0,0.00024136,6]
[366269142,1750169446321,-460.0,0.00024136,6]
[366269144,1750169446331,-460.0,0.00024136,6]
[366269146,1750169446342,-460.0,0.00024136,6]
[366269148,1750169446351,-460.0,0.00024136,6]
[366269150,1750169446361,-460.0,0.00024136,6]
[366269151,1750169446371,-434.002741,0.00024136,6]
[366269153,1750169446381,-460.0,0.00024136,6]
[366269155,1750169446391,-460.0,0.00024136,6]
[366269157,1750169446401,-400.0,0.00024136,6]
[366269158,1750169446412,-425.65380767,0.00024136,6]
[366269160,1750169446422,-460.0,0.00024136,6]
[366269162,1750169446432,-460.0,0.00024136,6]
[366269164,1750169446442,-460.0,0.00024136,6]
[366269166,1750169446451,-159.39929833,0.00024136,6]
[366269167,1750169446461,-440.0,0.00024136,6]
[366269169,1750169446471,-460.0,0.00024136,6]
[366269171,1750169446481,-430.0,0.00024136,6]
[366269172,1750169446491,-460.0,0.00024136,6]
[366269174,1750169446502,-460.0,0.00024136,6]
[366269176,1750169446512,-460.0,0.00024136,6]
[366269178,1750169446522,-460.0,0.00024136,6]
[366269180,1750169446531,-460.0,0.00024136,6]
[366269181,1750169446540,-334.41050873,0.00024136,6]
[366269183,1750169446550,-460.0,0.00024136,6]
[366269185,1750169446559,-492.61,0.00024136,6]
[366269186,1750169446568,-460.0,0.00024136,6]
[366269188,1750169446578,-460.0,0.00024136,6]
[366269190,1750169446588,-460.0,0.00024136,6]
[366269192,1750169446598,-460.0,0.00024136,6]
[366269194,1750169446608,-460.0,0.00024136,6]
[366269195,1750169446618,-460.0,0.00024136,6]
[366269197,1750169446628,-500.0,0.00024136,6]
[366269199,1750169446638,-191.29075583,0.00024136,6]
[366269201,1750169446648,-460.0,0.00024136,6]
[366269203,1750169446657,-460.0,0.00024136,6]
[366269204,1750169446667,-462.22815629,0.00024136,6]
[366269206,1750169446677,-460.0,0.00024136,6]
[366269208,1750169446686,-497.1,0.00024136,6]
[366269210,1750169446696,-452.96907362,0.00024136,6]
[366269211,1750169446705,-460.0,0.00024136,6]
[366269214,1750169446715,-460.0,0.00024136,6]
[366269216,1750169446726,-460.0,0.00024136,6]
[366269218,1750169446735,-460.0,0.00024136,6]
[366269219,1750169446745,-460.0,0.00024136,6]
[366269221,1750169446756,-460.0,0.00024136,6]
[366269224,1750169446766,-460.0,0.00024136,6]
[366269226,1750169446776,-460.0,0.00024136,6]
[366269228,1750169446786,-460.0,0.00024136,6]
[366269229,1750169446796,-460.0,0.00024136,6]
[366269231,1750169446806,-1447.5,0.00024136,2]
[366269233,1750169446817,-460.0,0.00024136,6]
[366269234,1750169446826,-460.0,0.00024136,6]
[366269236,1750169446836,-369.30743401,0.00024136,6]
[366269238,1750169446846,-460.0,0.00024136,6]
[366269239,1750169446856,-460.0,0.00024136,6]
[366269241,1750169446866,-445.45844187,0.00024136,6]
[366269243,1750169446875,-263.11956598,0.00024136,6]
[366269245,1750169446885,-460.0,0.00024136,6]
[366269246,1750169446895,-460.0,0.00024136,6]
[366269248,1750169446905,-460.0,0.00024136,6]
[366269250,1750169446915,-460.0,0.00024136,6]
[366269252,1750169446925,-460.0,0.00024136,6]
[366269253,1750169446935,-460.0,0.00024136,6]
[366269255,1750169446945,-460.0,0.00024136,6]
[366269257,1750169446955,-460.0,0.00024136,6]
[366269259,1750169446965,-460.0,0.00024136,6]
[366269267,1750169447062,-460.0,0.00024136,6]
[366269270,1750169447082,-460.0,0.00024136,6]
[366269271,1750169447092,-460.0,0.00024136,6]
[366269273,1750169447102,-442.39562979,0.00024136,6]
[366269275,1750169447112,-460.0,0.00024136,6]
[366269277,1750169447121,-460.0,0.00024136,6]
[366269278,1750169447130,-460.0,0.00024136,6]
[366269280,1750169447140,-460.0,0.00024136,6]
[366269282,1750169447150,-460.0,0.00024136,6]
[366269284,1750169447160,-460.0,0.00024136,6]
[366269286,1750169447170,-460.0,0.00024136,6]
[366269287,1750169447179,-460.0,0.00024136,6]
[366269289,1750169447188,-460.0,0.00024136,6]
[366269291,1750169447197,-460.0,0.00024136,6]